[Event "32nd NATO Chess Championship"]
[Site "Tartu, Estonia"]
[Date "2022.06.30"]
[Round "6.1"]
[White "Papasimakopoulos, Alexandros"]
[Black "Stein, Robert"]
[Result "1/2-1/2"]
[TimeControl "90 min + 30 sec increment from move one"]
[WhiteTitle "CM"]
[BlackTitle "FM"]
[WhiteFideId "4244125"]
[BlackFideId "12921084"]
[WhiteElo "2259"]
[BlackElo "2365"]

1. d4 {[%clk 01:30:56]} {[%emt 00:00:03]} d5 {[%clk 01:30:54]} {[%emt
00:00:07]} 2. c4 {[%clk 01:31:22]} {[%emt 00:00:04]} e6 {[%clk 01:31:19]}
{[%emt 00:00:05]} 3. Nc3 {[%clk 01:31:48]} {[%emt 00:00:04]} a6 {[%clk
01:31:23]} {[%emt 00:00:27]} 4. cxd5 {[%clk 01:32:12]} {[%emt 00:00:06]} exd5
{[%clk 01:31:48]} {[%emt 00:00:05]} 5. Qb3 {[%clk 01:32:36]} {[%emt 00:00:05]}
c6 {[%clk 01:31:53]} {[%emt 00:00:24]} 6. Nf3 {[%clk 01:32:50]} {[%emt
00:00:17]} Nf6 {[%clk 01:31:59]} {[%emt 00:00:25]} 7. Bg5 {[%clk 01:33:06]}
{[%emt 00:00:13]} Be7 {[%clk 01:30:20]} {[%emt 00:02:08]} 8. e3 {[%clk
01:32:53]} {[%emt 00:00:43]} h6 {[%clk 01:27:43]} {[%emt 00:03:07]} 9. Bf4
{[%clk 01:31:38]} {[%emt 00:01:46]} O-O {[%clk 01:25:26]} {[%emt 00:02:47]} 10.
Bxb8 {[%clk 01:29:58]} {[%emt 00:02:10]} Rxb8 {[%clk 01:25:25]} {[%emt
00:00:31]} 11. Bxa6 {[%clk 01:30:16]} {[%emt 00:00:13]} Bf5 {[%clk 01:20:13]}
{[%emt 00:05:41]} 12. Be2 {[%clk 01:30:36]} {[%emt 00:00:10]} Bd6 {[%clk
01:20:38]} {[%emt 00:00:05]} 13. h3 {[%clk 01:29:04]} {[%emt 00:02:01]} Qe7
{[%clk 01:20:22]} {[%emt 00:00:47]} 14. Qd1 {[%clk 01:26:46]} {[%emt 00:02:47]}
Rfe8 {[%clk 01:20:01]} {[%emt 00:00:51]} 15. Bd3 {[%clk 01:23:25]} {[%emt
00:03:51]} Ne4 {[%clk 01:18:59]} {[%emt 00:01:33]} 16. Bxe4 {[%clk 01:22:35]}
{[%emt 00:01:19]} dxe4 {[%clk 01:19:15]} {[%emt 00:00:15]} 17. Nd2 {[%clk
01:22:57]} {[%emt 00:00:08]} Qg5 {[%clk 01:03:32]} {[%emt 00:16:13]} 18. g4
{[%clk 01:23:18]} {[%emt 00:00:09]} Bg6 {[%clk 01:03:43]} {[%emt 00:00:20]} 19.
h4 {[%clk 01:23:31]} {[%emt 00:00:17]} Qf6 {[%clk 01:03:07]} {[%emt 00:01:05]}
20. Qe2 {[%clk 01:20:26]} {[%emt 00:03:34]} b5 {[%clk 00:51:58]} {[%emt
00:11:40]} 21. Nb3 {[%clk 01:17:26]} {[%emt 00:03:29]} Ra8 {[%clk 00:50:49]}
{[%emt 00:01:40]} 22. g5 {[%clk 01:10:17]} {[%emt 00:07:40]} hxg5 {[%clk
00:44:52]} {[%emt 00:06:26]} 23. Qg4 {[%clk 01:10:41]} {[%emt 00:00:06]} gxh4
{[%clk 00:44:58]} {[%emt 00:00:24]} 24. Qxh4 {[%clk 01:11:06]} {[%emt
00:00:05]} Qxh4 {[%clk 00:44:59]} {[%emt 00:00:29]} 25. Rxh4 {[%clk 01:11:30]}
{[%emt 00:00:05]} f5 {[%clk 00:43:31]} {[%emt 00:01:58]} 26. Kd2 {[%clk
01:04:28]} {[%emt 00:07:32]} Bf7 {[%clk 00:36:43]} {[%emt 00:07:18]} 27. Rah1
{[%clk 01:04:39]} {[%emt 00:00:19]} g6 {[%clk 00:32:23]} {[%emt 00:04:50]} 28.
Rh8+ {[%clk 01:03:51]} {[%emt 00:01:19]} Kg7 {[%clk 00:32:47]} {[%emt
00:00:05]} 29. Rxe8 {[%clk 01:02:55]} {[%emt 00:01:26]} Bxe8 {[%clk 00:30:25]}
{[%emt 00:02:53]} 30. a3 {[%clk 01:01:00]} {[%emt 00:02:25]} Bf7 {[%clk
00:22:18]} {[%emt 00:08:37]} 31. Nc5 {[%clk 00:59:28]} {[%emt 00:02:02]} g5
{[%emt 00:01:06]} 1/2-1/2

[Event "32nd NATO Chess Championship"]
[Site "Tartu, Estonia"]
[Date "2022.06.30"]
[Round "6.2"]
[White "Pavlidis, Anastasios"]
[Black "Pietruszewski, Marcin"]
[Result "1/2-1/2"]
[TimeControl "90 min + 30 sec increment from move one"]
[WhiteTitle "IM"]
[WhiteFideId "4208404"]
[BlackFideId "1170295"]
[WhiteElo "2296"]
[BlackElo "2195"]

1. d4 {[%clk 01:30:09]} {[%emt 00:00:50]} Nf6 {[%clk 01:30:42]} {[%emt
00:00:19]} 2. c4 {[%clk 01:30:25]} {[%emt 00:00:14]} e6 {[%clk 01:31:06]}
{[%emt 00:00:06]} 3. Nf3 {[%clk 01:30:15]} {[%emt 00:00:39]} Bb4+ {[%clk
01:31:32]} {[%emt 00:00:05]} 4. Nbd2 {[%clk 01:30:14]} {[%emt 00:00:31]} b6
{[%clk 01:31:50]} {[%emt 00:00:12]} 5. a3 {[%clk 01:30:11]} {[%emt 00:00:32]}
Bxd2+ {[%clk 01:32:14]} {[%emt 00:00:07]} 6. Qxd2 {[%clk 01:29:57]} {[%emt
00:00:44]} Bb7 {[%clk 01:32:39]} {[%emt 00:00:05]} 7. e3 {[%clk 01:30:05]}
{[%emt 00:00:22]} Qe7 {[%clk 01:32:39]} {[%emt 00:00:29]} 8. b4 {[%clk
01:23:33]} {[%emt 00:07:02]} d6 {[%clk 01:32:12]} {[%emt 00:00:58]} 9. Be2
{[%clk 01:17:27]} {[%emt 00:06:36]} Nbd7 {[%clk 01:32:33]} {[%emt 00:00:09]} 10.
Bb2 {[%clk 01:17:09]} {[%emt 00:00:47]} O-O {[%clk 01:32:19]} {[%emt 00:00:45]}
11. O-O {[%clk 01:17:22]} {[%emt 00:00:15]} a5 {[%clk 01:32:46]} {[%emt
00:00:05]} 12. Rac1 {[%clk 01:10:55]} {[%emt 00:06:56]} Be4 {[%clk 01:24:06]}
{[%emt 00:09:11]} 13. Ne1 {[%clk 01:05:20]} {[%emt 00:06:04]} Rfc8 {[%clk
01:08:11]} {[%emt 00:16:26]} 14. f3 {[%clk 01:03:42]} {[%emt 00:02:07]} Bg6
{[%clk 01:07:47]} {[%emt 00:00:55]} 15. Nd3 {[%clk 00:57:52]} {[%emt 00:06:19]}
c6 {[%clk 00:50:31]} {[%emt 00:17:46]} 16. e4 {[%clk 00:45:20]} {[%emt
00:13:02]} axb4 {[%clk 00:30:12]} {[%emt 00:20:50]} 17. axb4 {[%clk 00:41:52]}
{[%emt 00:03:57]} e5 {[%clk 00:30:23]} {[%emt 00:00:20]} 18. dxe5 {[%clk
00:25:27]} {[%emt 00:16:55]} dxe5 {[%clk 00:30:37]} {[%emt 00:00:17]} 19. Qc3
{[%clk 00:24:58]} {[%emt 00:00:57]} Ne8 {[%clk 00:12:04]} {[%emt 00:19:04]} 20.
Nxe5 {[%clk 00:21:54]} {[%emt 00:03:34]} Nxe5 {[%clk 00:12:20]} {[%emt
00:00:15]} 21. Qxe5 {[%clk 00:22:15]} {[%emt 00:00:07]} Qxb4 {[%clk 00:12:47]}
{[%emt 00:00:03]} 22. Bc3 {[%clk 00:20:46]} {[%emt 00:01:59]} Qc5+ {[%clk
00:08:44]} {[%emt 00:04:34]} 23. Qxc5 {[%clk 00:19:42]} {[%emt 00:01:33]} bxc5
{[%clk 00:09:14]} {[%emt 00:00:02]} 24. Ra1 {[%clk 00:19:30]} {[%emt 00:00:41]}
Nc7 {[%clk 00:09:24]} {[%emt 00:00:20]} 25. Rxa8 {[%clk 00:17:55]} {[%emt
00:02:05]} Rxa8 {[%clk 00:09:53]} 26. Rd1 {[%clk 00:15:48]} {[%emt 00:02:36]}
Ne6 {[%clk 00:10:22]} {[%emt 00:00:01]} 27. Rd6 {[%clk 00:15:25]} {[%emt
00:00:54]} Ra2 {[%clk 00:08:35]} {[%emt 00:02:17]} 28. Bf1 {[%clk 00:12:12]}
{[%emt 00:03:42]} Ra6 {[%clk 00:07:22]} {[%emt 00:01:44]} 29. Be5 {[%clk
00:11:44]} {[%emt 00:00:57]} Kf8 {[%clk 00:07:40]} {[%emt 00:00:12]} 30. Rd7
{[%clk 00:12:01]} {[%emt 00:00:13]} Ke8 {[%clk 00:04:47]} {[%emt 00:03:24]} 31.
Rb7 {[%clk 00:12:24]} {[%emt 00:00:05]} Ra2 {[%clk 00:02:40]} {[%emt 00:02:38]}
32. Rb8+ {[%clk 00:07:01]} {[%emt 00:05:54]} Ke7 {[%clk 00:02:24]} {[%emt
00:00:44]} 33. Rb7+ {[%clk 00:05:51]} {[%emt 00:01:40]} Kd8 {[%clk 00:02:13]}
{[%emt 00:00:41]} 34. Rb8+ {[%clk 00:05:27]} {[%emt 00:00:55]} Kd7 {[%clk
00:01:58]} {[%emt 00:00:46]} 35. Rb7+ {[%emt 00:05:04]} 1/2-1/2

[Event "32nd NATO Chess Championship"]
[Site "Tartu, Estonia"]
[Date "2022.06.30"]
[Round "6.3"]
[White "Cichy, Kamil"]
[Black "Pavlidou, Ekaterini"]
[Result "1/2-1/2"]
[TimeControl "90 min + 30 sec increment from move one"]
[BlackTitle "WIM"]
[WhiteFideId "1177257"]
[BlackFideId "4213262"]
[WhiteElo "2179"]
[BlackElo "2146"]

1. e4 {[%clk 01:30:45]} {[%emt 00:00:14]} c5 {[%clk 01:30:36]} {[%emt
00:00:24]} 2. b3 {[%clk 01:29:53]} {[%emt 00:01:22]} Nc6 {[%clk 01:25:21]}
{[%emt 00:05:45]} 3. Bb2 {[%clk 01:26:22]} {[%emt 00:04:00]} e6 {[%clk
01:24:27]} {[%emt 00:01:24]} 4. Bb5 {[%clk 01:25:56]} {[%emt 00:00:56]} Nge7
{[%clk 01:23:07]} {[%emt 00:01:51]} 5. Ne2 {[%clk 01:19:02]} {[%emt 00:07:24]}
a6 {[%clk 01:23:20]} {[%emt 00:00:18]} 6. Bxc6 {[%clk 01:19:14]} {[%emt
00:00:17]} Nxc6 {[%clk 01:23:41]} {[%emt 00:00:09]} 7. O-O {[%clk 01:16:45]}
{[%emt 00:02:59]} b5 {[%clk 01:13:47]} {[%emt 00:10:23]} 8. d3 {[%clk
00:59:02]} {[%emt 00:18:13]} Bb7 {[%clk 01:12:01]} {[%emt 00:02:16]} 9. f4
{[%clk 00:55:39]} {[%emt 00:03:53]} Qc7 {[%clk 01:01:02]} {[%emt 00:11:29]} 10.
Nd2 {[%clk 00:53:42]} {[%emt 00:02:25]} d5 {[%clk 00:58:47]} {[%emt 00:02:47]}
11. e5 {[%clk 00:33:21]} {[%emt 00:20:52]} d4 {[%clk 00:57:18]} {[%emt
00:01:58]} 12. Ne4 {[%clk 00:24:35]} {[%emt 00:09:17]} Be7 {[%clk 00:54:07]}
{[%emt 00:03:40]} 13. N2g3 {[%clk 00:22:52]} {[%emt 00:02:13]} O-O-O {[%clk
00:52:08]} {[%emt 00:02:29]} 14. Qe2 {[%clk 00:19:31]} {[%emt 00:03:52]} Kb8
{[%clk 00:46:33]} {[%emt 00:06:04]} 15. a3 {[%clk 00:15:52]} {[%emt 00:04:10]}
g6 {[%clk 00:40:42]} {[%emt 00:06:20]} 16. Bc1 {[%clk 00:11:13]} {[%emt
00:05:10]} 1/2-1/2

[Event "32nd NATO Chess Championship"]
[Site "Tartu, Estonia"]
[Date "2022.06.30"]
[Round "6.4"]
[White "Nikomanis, Andreas"]
[Black "Valeinis, Janis"]
[Result "1/2-1/2"]
[TimeControl "90 min + 30 sec increment from move one"]
[WhiteFideId "4213831"]
[BlackFideId "11601450"]
[WhiteElo "2068"]
[BlackElo "2176"]

1. e4 {[%clk 01:30:54]} {[%emt 00:00:04]} e5 {[%clk 01:30:38]} {[%emt
00:00:24]} 2. Nf3 {[%clk 01:29:54]} {[%emt 00:01:29]} Nc6 {[%clk 01:31:02]}
{[%emt 00:00:07]} 3. d4 {[%clk 01:30:16]} {[%emt 00:00:07]} exd4 {[%clk
01:31:27]} {[%emt 00:00:06]} 4. Nxd4 {[%clk 01:30:42]} {[%emt 00:00:03]} Bb4+
{[%clk 01:26:00]} {[%emt 00:05:57]} 5. c3 {[%clk 01:28:16]} {[%emt 00:02:56]}
Bc5 {[%clk 01:26:25]} {[%emt 00:00:05]} 6. Nxc6 {[%clk 01:28:32]} {[%emt
00:00:14]} bxc6 {[%clk 01:26:42]} {[%emt 00:00:13]} 7. Bd3 {[%clk 01:27:50]}
{[%emt 00:01:12]} Qh4 {[%clk 01:21:39]} {[%emt 00:05:33]} 8. O-O {[%clk
01:28:11]} {[%emt 00:00:09]} Nf6 {[%clk 01:17:41]} {[%emt 00:04:28]} 9. Qf3
{[%clk 01:26:01]} {[%emt 00:02:40]} d6 {[%clk 01:02:11]} {[%emt 00:15:59]} 10.
e5 {[%clk 01:09:52]} {[%emt 00:16:38]} Nd5 {[%clk 01:02:22]} {[%emt 00:00:20]}
11. Nd2 {[%clk 01:00:23]} {[%emt 00:09:58]} dxe5 {[%clk 00:49:38]} {[%emt
00:13:15]} 12. Nc4 {[%clk 00:55:30]} {[%emt 00:05:23]} Bd6 {[%clk 00:36:23]}
{[%emt 00:13:46]} 13. Re1 {[%clk 00:48:42]} {[%emt 00:07:17]} O-O {[%clk
00:36:19]} {[%emt 00:00:35]} 14. Nxe5 {[%clk 00:45:38]} {[%emt 00:03:33]} Qe7
{[%clk 00:25:16]} {[%emt 00:11:33]} 15. Qe4 {[%clk 00:29:46]} {[%emt 00:16:23]}
Nf6 {[%clk 00:25:15]} {[%emt 00:00:30]} 16. Qe2 {[%clk 00:29:25]} {[%emt
00:00:51]} Bb7 {[%clk 00:22:56]} {[%emt 00:02:50]} 17. Bf4 {[%clk 00:25:52]}
{[%emt 00:04:03]} c5 {[%clk 00:21:59]} {[%emt 00:01:27]} 18. Qc2 {[%clk
00:25:59]} {[%emt 00:00:22]} Qd8 {[%clk 00:21:57]} {[%emt 00:00:32]} 19. Rad1
{[%clk 00:25:18]} {[%emt 00:01:11]} 1/2-1/2

[Event "32nd NATO Chess Championship"]
[Site "Tartu, Estonia"]
[Date "2022.06.30"]
[Round "6.5"]
[White "Tustanowski, Mateusz"]
[Black "Flaata, Alexander R."]
[Result "0-1"]
[TimeControl "90 min + 30 sec increment from move one"]
[WhiteFideId "1169866"]
[BlackFideId "1502026"]
[WhiteElo "2036"]
[BlackElo "2048"]

1. d4 {[%emt 02:29:56]} Nf6 {[%emt 00:01:32]} 2. Bf4 {[%emt 00:00:12]} c5
{[%emt 00:00:45]} 3. e3 {[%emt 00:00:07]} Qb6 {[%emt 00:00:58]} 4. Na3 {[%emt
00:00:05]} Qxb2 {[%emt 00:00:19]} 5. Nb5 {[%emt 00:00:05]} Nd5 {[%emt
00:00:12]} 6. Rb1 {[%emt 00:00:05]} Qxa2 {[%emt 00:00:09]} 7. Ra1 {[%emt
00:00:03]} Qb2 {[%emt 00:00:17]} 8. Nf3 {[%emt 00:00:03]} Na6 {[%emt 00:09:25]}
9. Rb1 {[%emt 00:15:56]} Qa2 {[%emt 00:00:09]} 10. Ne5 {[%emt 00:00:28]} Qa5+
{[%emt 00:06:15]} 11. c3 {[%emt 00:00:29]} Nxf4 {[%emt 00:01:38]} 12. exf4
{[%emt 00:05:54]} d6 {[%emt 00:05:21]} 13. Ra1 {[%emt 00:06:12]} Qb6 {[%emt
00:09:16]} 14. Qa4 {[%emt 00:15:46]} dxe5 {[%emt 00:19:55]} 15. Nc7+ {[%emt
00:05:51]} Kd8 {[%emt 00:00:06]} 16. Nxa8 {[%emt 00:00:22]} Qb2 {[%emt
00:03:41]} 17. Bxa6 {[%emt 00:06:09]} Qxc3+ {[%emt 00:00:05]} 18. Ke2 {[%emt
00:05:48]} Bd7 {[%emt 00:05:10]} 19. Qa5+ {[%emt 00:10:21]} Qxa5 {[%emt
00:00:25]} 20. Rxa5 {[%emt 00:00:04]} bxa6 {[%emt 00:00:13]} 21. Rxc5 {[%emt
00:01:22]} Bb5+ {[%emt 00:03:16]} 22. Kd2 {[%emt 00:06:48]} e6 {[%emt
00:00:29]} 23. Rc7 {[%emt 00:00:23]} Bb4+ {[%emt 00:00:48]} 24. Kc1 {[%emt
00:01:45]} exd4 {[%emt 00:00:43]} 25. Rxa7 {[%emt 00:09:15]} d3 {[%emt
00:04:28]} 26. Nc7 {[%emt 00:05:41]} d2+ {[%emt 00:00:17]} 27. Kb2 {[%emt
00:00:07]} Bc5 {[%emt 00:05:30]} 28. Nxe6+ {[%emt 00:00:51]} fxe6 {[%emt
00:00:11]} 29. Ra8+ {[%emt 00:00:04]} Ke7 {[%emt 00:02:41]} 30. Rxh8 {[%emt
00:00:05]} Ba4 {[%emt 00:02:56]} 31. Kc3 {[%emt 00:02:19]} d1=Q {[%emt
00:00:31]} 32. Rxd1 {[%emt 00:00:09]} Bxd1 {[%emt 00:00:11]} 33. Rxh7 {[%emt
00:00:02]} Kf6 {[%emt 00:00:25]} 34. Kd2 {[%emt 00:00:19]} Bb3 {[%emt
00:00:27]} 35. g4 {[%emt 00:01:50]} a5 {[%emt 00:01:08]} 36. Kc3 {[%emt
00:01:03]} Bd5 {[%emt 00:00:12]} 37. h4 {[%emt 00:02:10]} a4 {[%emt 00:00:22]}
38. h5 {[%emt 00:00:46]} a3 {[%emt 00:00:27]} 0-1

[Event "32nd NATO Chess Championship"]
[Site "Tartu, Estonia"]
[Date "2022.06.30"]
[Round "6.6"]
[White "Mouroutis, Konstantinos"]
[Black "Wang, Eigen"]
[Result "0-1"]
[TimeControl "90 min + 30 sec increment from move one"]
[WhiteFideId "4204689"]
[BlackFideId "2008777"]
[WhiteElo "2133"]
[BlackElo "2293"]

1. d4 {[%emt 00:03:02]} Nf6 {[%emt 00:00:06]} 2. Bf4 {[%emt 00:00:13]} d5
{[%emt 00:00:20]} 3. e3 {[%emt 00:00:08]} e6 {[%emt 00:00:06]} 4. Bd3 {[%emt
00:00:12]} c5 {[%emt 00:00:14]} 5. c3 {[%emt 00:00:06]} Bd6 {[%emt 00:00:10]} 6.
Bg3 {[%emt 00:00:12]} O-O {[%emt 00:00:11]} 7. Nf3 {[%emt 00:00:07]} Qc7 {[%emt
00:00:09]} 8. Nbd2 {[%emt 00:01:46]} Nbd7 {[%emt 00:00:12]} 9. O-O {[%emt
00:00:56]} Bxg3 {[%emt 00:01:06]} 10. hxg3 e5 {[%emt 00:00:15]} 11. dxe5 {[%emt
00:00:01]} Nxe5 {[%emt 00:00:06]} 12. Nxe5 {[%emt 00:03:18]} Qxe5 {[%emt
00:00:05]} 13. Nf3 {[%emt 00:03:04]} Qh5 {[%emt 00:02:06]} 14. Re1 {[%emt
00:03:54]} Rd8 {[%emt 00:04:19]} 15. Nh2 {[%emt 00:06:35]} Qh6 {[%emt
00:02:57]} 16. Qf3 {[%emt 00:01:17]} Be6 {[%emt 00:02:48]} 17. Bf5 {[%emt
00:05:56]} Qg5 {[%emt 00:08:23]} 18. Bxe6 {[%emt 00:03:15]} fxe6 {[%emt
00:00:04]} 19. Qf4 {[%emt 00:02:45]} Qh5 {[%emt 00:00:54]} 20. Nf3 {[%emt
00:01:04]} Rf8 {[%emt 00:19:43]} 21. Qg5 {[%emt 00:17:09]} Qe8 {[%emt
00:00:41]} 22. Nd2 {[%emt 00:04:27]} Qb5 {[%emt 00:05:10]} 23. e4 {[%emt
00:04:46]} dxe4 {[%emt 00:10:03]} 24. c4 {[%emt 00:06:29]} Qc6 {[%emt
00:02:52]} 25. Re2 {[%emt 00:02:41]} Rad8 {[%emt 00:03:52]} 26. Rae1 {[%emt
00:01:10]} Rd4 {[%emt 00:03:06]} 27. b3 {[%emt 00:02:23]} h6 {[%emt 00:04:13]}
28. Qg6 {[%emt 00:00:50]} e3 {[%emt 00:01:40]} 29. fxe3 {[%emt 00:11:59]} Rg4
{[%emt 00:00:36]} 30. Qd3 {[%emt 00:00:28]} Rxg3 {[%emt 00:00:52]} 31. Nf1
{[%emt 00:00:30]} Rg5 {[%emt 00:00:37]} 32. e4 {[%emt 00:00:53]} Nh5 {[%emt
00:06:39]} 33. Rd2 {[%emt 00:04:03]} Nf4 {[%emt 00:01:24]} 34. Qe3 {[%emt
00:01:13]} e5 {[%emt 00:04:32]} 35. Kh1 {[%emt 00:03:47]} Qg6 {[%emt 00:02:31]}
36. g3 {[%emt 00:01:05]} Nh5 {[%emt 00:05:35]} 37. Kh2 {[%emt 00:02:07]} Rxf1
{[%emt 00:02:54]} 38. Rxf1 Nxg3 {[%emt 00:00:13]} 39. Rf8+ {[%emt 00:05:13]}
Kxf8 {[%emt 00:02:27]} 0-1

[Event "32nd NATO Chess Championship"]
[Site "Tartu, Estonia"]
[Date "2022.06.30"]
[Round "6.7"]
[White "Nilsson, Erik"]
[Black "Sycz, Dariusz"]
[Result "1/2-1/2"]
[TimeControl "90 min + 30 sec increment from move one"]
[WhiteFideId "1409000"]
[BlackFideId "1138650"]
[WhiteElo "2002"]
[BlackElo "2189"]

1. d4 {[%clk 01:30:58]} {[%emt 00:00:01]} Nf6 {[%clk 01:30:37]} {[%emt
00:00:23]} 2. c4 {[%clk 01:31:21]} {[%emt 00:00:07]} e6 {[%clk 01:30:48]}
{[%emt 00:00:18]} 3. Nc3 {[%clk 01:31:42]} {[%emt 00:00:10]} d5 {[%clk
01:29:39]} {[%emt 00:01:39]} 4. cxd5 {[%clk 01:31:19]} {[%emt 00:00:53]} exd5
{[%clk 01:29:59]} {[%emt 00:00:10]} 5. Bg5 {[%clk 01:31:40]} {[%emt 00:00:08]}
Nbd7 {[%clk 01:29:42]} {[%emt 00:00:47]} 6. e3 {[%clk 01:31:50]} {[%emt
00:00:20]} c6 {[%clk 01:29:30]} {[%emt 00:00:43]} 7. Bd3 {[%clk 01:31:53]}
{[%emt 00:00:27]} Be7 {[%clk 01:29:01]} {[%emt 00:00:59]} 8. Qc2 {[%clk
01:31:53]} {[%emt 00:00:29]} O-O {[%clk 01:29:09]} {[%emt 00:00:23]} 9. Nge2
{[%clk 01:31:40]} {[%emt 00:00:43]} Re8 {[%clk 01:28:30]} {[%emt 00:01:09]} 10.
O-O {[%clk 01:31:15]} {[%emt 00:00:55]} Nf8 {[%clk 01:27:41]} {[%emt 00:01:18]}
11. f3 {[%clk 01:30:12]} {[%emt 00:01:34]} Ng6 {[%clk 01:13:31]} {[%emt
00:14:39]} 12. Rad1 {[%clk 01:28:55]} {[%emt 00:01:47]} Nh5 {[%clk 01:02:47]}
{[%emt 00:11:14]} 13. Bxe7 {[%clk 01:25:49]} {[%emt 00:03:38]} Qxe7 {[%clk
01:02:56]} {[%emt 00:00:20]} 14. e4 {[%clk 01:25:27]} {[%emt 00:00:52]} dxe4
{[%clk 00:54:09]} {[%emt 00:09:16]} 15. fxe4 {[%clk 01:24:57]} {[%emt
00:01:01]} Bg4 {[%clk 00:52:58]} {[%emt 00:01:41]} 16. Bc4 {[%clk 01:12:09]}
{[%emt 00:13:18]} Rf8 {[%clk 00:52:04]} {[%emt 00:01:25]} 17. Qb3 {[%clk
01:08:36]} {[%emt 00:04:02]} b5 {[%clk 00:50:08]} {[%emt 00:02:25]} 18. Bd3
{[%clk 01:08:00]} {[%emt 00:01:06]} Qg5 {[%clk 00:46:04]} {[%emt 00:04:33]} 19.
Qc2 {[%clk 01:01:59]} {[%emt 00:06:34]} b4 {[%clk 00:40:35]} {[%emt 00:05:58]}
20. Na4 {[%clk 01:00:37]} {[%emt 00:01:51]} Qe3+ {[%clk 00:33:10]} {[%emt
00:07:56]} 21. Rf2 {[%clk 01:00:16]} {[%emt 00:00:51]} Nhf4 {[%clk 00:32:46]}
{[%emt 00:00:53]} 22. Qd2 {[%clk 00:56:38]} {[%emt 00:04:08]} Qxd2 {[%clk
00:31:54]} {[%emt 00:01:22]} 23. Rxd2 {[%clk 00:57:00]} {[%emt 00:00:09]} Nxd3
{[%clk 00:32:20]} {[%emt 00:00:04]} 24. Rxd3 {[%clk 00:57:08]} {[%emt
00:00:22]} Bxe2 {[%clk 00:32:47]} {[%emt 00:00:03]} 25. Rxe2 {[%clk 00:57:21]}
{[%emt 00:00:17]} Nf4 {[%clk 00:33:14]} {[%emt 00:00:02]} 26. Red2 {[%clk
00:57:39]} {[%emt 00:00:12]} Nxd3 {[%clk 00:33:38]} {[%emt 00:00:08]} 27. Rxd3
{[%clk 00:58:04]} {[%emt 00:00:05]} Rfe8 {[%clk 00:33:31]} {[%emt 00:00:36]} 28.
Nc5 {[%clk 00:58:04]} {[%emt 00:00:29]} a5 {[%clk 00:32:00]} {[%emt 00:02:02]}
29. Kf2 {[%clk 00:58:20]} {[%emt 00:00:14]} f6 {[%clk 00:29:54]} {[%emt
00:02:36]} 30. Kf3 {[%clk 00:57:17]} {[%emt 00:01:32]} Ra7 {[%clk 00:29:55]}
{[%emt 00:00:30]} 31. Rd2 {[%clk 00:57:18]} {[%emt 00:00:29]} Rd8 {[%clk
00:28:56]} {[%emt 00:01:27]} 32. Ke3 {[%clk 00:57:19]} {[%emt 00:00:31]} Re7
{[%clk 00:28:59]} {[%emt 00:00:27]} 33. Kd3 {[%clk 00:57:12]} {[%emt 00:00:36]}
g6 {[%clk 00:28:22]} {[%emt 00:01:08]} 34. Re2 {[%clk 00:55:13]} {[%emt
00:02:28]} Kg7 {[%clk 00:25:53]} {[%emt 00:03:00]} 35. Kc4 {[%clk 00:55:21]}
{[%emt 00:00:22]} f5 {[%clk 00:25:34]} {[%emt 00:00:49]} 36. e5 {[%clk
00:55:34]} {[%emt 00:00:17]} g5 {[%clk 00:25:23]} {[%emt 00:00:41]} 37. Nb3
{[%clk 00:54:38]} {[%emt 00:01:26]} Rd5 {[%clk 00:25:18]} {[%emt 00:00:35]} 38.
Nc5 {[%clk 00:54:19]} {[%emt 00:00:48]} Kg6 {[%clk 00:25:03]} {[%emt 00:00:46]}
39. Rf2 {[%clk 00:52:51]} {[%emt 00:01:57]} h5 {[%clk 00:23:53]} {[%emt
00:01:40]} 40. Rf3 {[%clk 00:51:07]} {[%emt 00:02:14]} h4 {[%clk 00:23:04]}
{[%emt 00:01:20]} 41. h3 {[%clk 00:49:06]} {[%emt 00:02:31]} Rd8 {[%clk
00:21:10]} {[%emt 00:02:23]} 42. Nb3 {[%clk 00:48:50]} {[%emt 00:00:45]} Red7
{[%clk 00:19:48]} {[%emt 00:01:54]} 43. Rd3 {[%clk 00:48:53]} {[%emt 00:00:27]}
Rd5 {[%clk 00:19:15]} {[%emt 00:01:03]} 44. Nc5 {[%clk 00:48:19]} {[%emt
00:01:02]} f4 {[%clk 00:18:43]} {[%emt 00:01:03]} 45. Nb7 {[%clk 00:46:27]}
{[%emt 00:02:23]} R8d7 {[%clk 00:13:57]} {[%emt 00:05:13]} 46. Nd6 {[%clk
00:46:16]} {[%emt 00:00:44]} R7xd6 {[%clk 00:11:01]} {[%emt 00:03:26]} 47. exd6
{[%clk 00:46:35]} {[%emt 00:00:11]} Rxd6 {[%clk 00:11:30]} 48. Kc5 {[%clk
00:46:33]} {[%emt 00:00:32]} Re6 {[%clk 00:11:56]} {[%emt 00:00:04]} 49. Rd2
{[%clk 00:46:28]} {[%emt 00:00:34]} Kf5 {[%clk 00:11:16]} {[%emt 00:01:11]} 50.
Kb6 {[%clk 00:46:15]} {[%emt 00:00:41]} g4 {[%clk 00:10:07]} {[%emt 00:01:41]}
51. hxg4+ {[%clk 00:45:42]} {[%emt 00:01:03]} Kxg4 {[%clk 00:10:34]} {[%emt
00:00:03]} 52. Kxa5 {[%clk 00:46:01]} {[%emt 00:00:12]} Kg3 {[%clk 00:10:02]}
{[%emt 00:01:01]} 53. Kxb4 {[%clk 00:46:20]} {[%emt 00:00:10]} h3 {[%clk
00:10:12]} {[%emt 00:00:20]} 54. gxh3 {[%clk 00:46:26]} {[%emt 00:00:24]} f3
{[%clk 00:10:16]} {[%emt 00:00:27]} 55. a4 {[%clk 00:38:35]} {[%emt 00:08:21]}
Re2 {[%clk 00:10:29]} {[%emt 00:00:17]} 56. Rd3 {[%clk 00:37:52]} {[%emt
00:01:13]} Rxb2+ {[%clk 00:10:28]} {[%emt 00:00:31]} 57. Kc5 {[%clk 00:37:56]}
{[%emt 00:00:26]} Rc2+ {[%clk 00:10:31]} {[%emt 00:00:26]} 58. Kb6 {[%clk
00:37:57]} {[%emt 00:00:31]} Kg2 {[%clk 00:09:31]} {[%emt 00:01:28]} 59. a5
{[%clk 00:37:14]} {[%emt 00:01:14]} f2 {[%clk 00:08:23]} {[%emt 00:01:38]} 60.
Rd1 {[%clk 00:37:35]} {[%emt 00:00:08]} Rc4 {[%clk 00:07:07]} {[%emt 00:01:47]}
61. a6 {[%clk 00:31:20]} {[%emt 00:06:45]} Rxd4 {[%clk 00:06:58]} {[%emt
00:00:38]} 62. Ra1 {[%clk 00:27:50]} {[%emt 00:04:01]} Ra4 {[%clk 00:05:45]}
{[%emt 00:01:43]} 63. Rxa4 {[%clk 00:28:14]} {[%emt 00:00:06]} f1=Q {[%clk
00:06:08]} {[%emt 00:00:06]} 64. Ra5 {[%clk 00:27:52]} {[%emt 00:00:53]} Qc4
{[%clk 00:02:16]} {[%emt 00:04:22]} 65. a7 {[%clk 00:25:35]} {[%emt 00:02:47]}
Qb4+ {[%clk 00:02:37]} {[%emt 00:00:08]} 66. Ka6 {[%emt 00:02:55]} 1/2-1/2